bitfinex-derivatives/quotes_ETHF0:USTF0_20260204
["timestamp","ask_amount","ask_price","bid_price","bid_amount"]
[1770206626536,0.33181977,2257.1,2255.9,0.15429636]
[1770206626734,0.16375422,2257.1,2255.9,0.15429636]
[1770206626935,0.33181977,2257.1,2255.9,0.15429636]
[1770206627235,0.33181977,2257.1,2255.8,0.22197]
[1770206627236,0.00433243,2257.2,2256.2,0.22193]
[1770206627537,0.00433243,2257.2,2256.3,0.15429636]
[1770206627738,0.00433243,2257.2,2256.3,0.15757512]
[1770206628436,0.00433243,2257.2,2256.4,0.15429636]
[1770206628837,0.16375422,2257.7,2256.4,0.15429636]
[1770206629037,0.33181977,2257.6,2256.4,0.15429636]
[1770206629337,0.16375422,2257.6,2256.4,0.15429636]
[1770206629537,0.16375422,2257.4,2256.4,0.15429636]
[1770206629832,0.16898765,2257.4,2256.4,0.15429636]
[1770206630038,0.16806555,2257.2,2256.4,0.15429636]
[1770206630437,0.16806555,2257.1,2256.4,0.15429636]
[1770206630735,0.16375422,2257.1,2256.3,0.00327876]
[1770206630930,0.16806555,2256.9,2256.3,0.00327876]
[1770206631138,0.33215747,2256.7,2256.3,0.00327876]
[1770206631439,0.16409192,2257.0,2256.3,0.16023462]
[1770206631634,0.16806555,2256.9,2256.3,0.16023462]
[1770206632138,0.16806555,2256.8,2256.3,0.16023462]
[1770206632338,0.16806555,2256.9,2256.3,0.16023462]
[1770206633038,0.00523343,2257.4,2256.7,0.15695586]
[1770206633735,0.16409192,2257.9,2256.8,0.15695586]
[1770206634742,0.16958768,2257.9,2256.8,0.15695586]
[1770206637545,0.00549576,2257.9,2257.0,0.16564228]
[1770206640744,0.00549576,2257.9,2257.0,0.38749228]
[1770206641247,0.16599968,2258.2,2257.3,0.16564228]
[1770206642240,0.17065042,2258.2,2257.3,0.16564228]
[1770206644549,0.01376871,2258.8,2257.3,0.16564228]
[1770206644749,0.23543871,2258.8,2257.3,0.16564228]
[1770206645549,0.24020383,2258.8,2257.3,0.16564228]
[1770206646347,1.0198,2258.6,2256.9,0.16564228]
[1770206646546,0.38777968,2257.7,2256.4,0.16564228]
[1770206646752,0.16599968,2257.6,2256.3,0.16892104]
[1770206650754,0.16599968,2257.6,2256.5,0.16564228]
[1770206651053,0.16599968,2257.9,2256.5,0.16564228]
[1770206651849,0.16599968,2257.9,2256.6,0.16564228]
[1770206652353,0.16599968,2258.7,2257.5,0.16564228]
[1770206664758,0.00476512,2258.8,2257.5,0.16564228]
[1770206664959,0.00476512,2258.8,2257.9,0.15423172]
[1770206665257,0.00476512,2258.8,2257.9,0.15912114]
[1770206665462,0.00476512,2258.8,2257.9,0.38088114]
[1770206665765,0.00476512,2258.8,2258.0,0.37598172]
[1770206666166,0.00476512,2258.8,2258.1,0.15423172]
[1770206666467,0.16685272,2259.4,2258.2,0.15423172]
[1770206667463,0.00504763,2259.4,2258.4,0.15423172]
[1770206667766,0.00504763,2259.4,2258.5,0.15423172]
[1770206668367,0.17190035,2259.4,2258.3,0.15423172]
[1770206669070,0.00504763,2259.4,2258.3,0.15423172]
[1770206669268,0.17190035,2259.4,2258.3,0.15423172]
[1770206669469,0.16685272,2259.3,2258.1,0.15423172]
[1770206670170,0.16685272,2259.3,2258.0,2.216]
[1770206670871,0.16685272,2259.1,2258.0,2.216]
[1770206671073,0.16685272,2259.1,2258.0,2.37023172]
[1770206671472,0.16685272,2259.0,2257.9,0.00488942]
[1770206672667,0.16685272,2258.7,2257.4,0.15423172]
[1770206672873,0.16685272,2258.4,2257.2,0.15423172]
[1770206673672,0.16685272,2258.4,2257.2,0.15958305]
[1770206673973,0.38859272,2258.1,2257.2,0.00535133]
[1770206674173,0.16685272,2257.9,2256.6,0.15423172]
[1770206675072,0.16685272,2257.9,2256.6,0.15757356]
[1770206677370,0.38863272,2257.7,2256.6,0.15757356]
[1770206677677,0.16685272,2257.5,2256.2,0.15423172]
[1770206677877,0.16685272,2257.4,2256.2,0.15423172]
[1770206678176,0.16685272,2257.3,2256.0,2.216]
[1770206678377,0.16685272,2257.3,2256.1,0.15423172]
[1770206678672,0.171165,2257.3,2256.1,0.15967264]
[1770206678970,0.16685272,2256.9,2255.5,0.15423172]
[1770206679172,0.16685272,2256.7,2255.5,0.15423172]
[1770206679569,0.16685272,2256.7,2254.9,2.216]
[1770206679570,0.16685272,2256.7,2255.0,0.37627172]
[1770206679775,0.16685272,2256.7,2255.2,0.15423172]
[1770206679976,0.16685272,2256.7,2255.2,0.15906965]
[1770206680576,0.16685272,2256.6,2255.2,0.15906965]
[1770206684283,0.16685272,2256.6,2255.3,0.15423172]
[1770206684484,0.16685272,2256.9,2255.7,0.15423172]
[1770206684685,0.16685272,2256.9,2255.8,0.15423172]
[1770206684982,0.16685272,2257.1,2255.8,0.15423172]
[1770206685378,0.16685272,2257.1,2255.9,0.15423172]
[1770206689390,0.16685272,2257.1,2256.1,0.15423172]
[1770206695993,0.22614228,2257.3,2256.1,0.15423172]
[1770206695994,0.38475733,2257.3,2256.1,0.15423172]
[1770206696694,0.15861505,2257.2,2256.1,0.15423172]
[1770206697695,0.00431228,2257.3,2256.1,0.15423172]
[1770206697894,0.00431228,2257.3,2256.1,0.37617172]
[1770206698194,0.17243908,2257.3,2256.2,0.15839537]
[1770206700488,0.00431228,2257.3,2256.3,0.15839537]
[1770206700794,0.1681268,2258.3,2256.8,0.15839537]
[1770206700987,0.1681268,2258.3,2256.9,0.15839537]
[1770206701295,0.1681268,2258.1,2256.7,0.15839537]
[1770206701495,0.1681268,2257.9,2256.7,0.15839537]
[1770206701696,0.1681268,2257.8,2256.7,0.1636823]
[1770206702391,0.22181,2257.5,2256.7,0.00528693]
[1770206702593,0.00310576,2257.9,2256.1,0.15839537]
[1770206702594,0.1681268,2257.1,2256.1,0.15839537]
[1770206702788,0.1681268,2256.9,2255.4,0.15839537]
[1770206702993,0.1681268,2257.2,2255.7,0.15839537]
[1770206703195,0.1681268,2257.2,2255.8,0.15839537]
[1770206703494,0.1681268,2257.2,2255.8,0.16297876]
[1770206704499,0.1681268,2257.1,2255.8,0.16297876]
[1770206707001,0.1681268,2257.0,2255.8,0.16297876]
[1770206707303,0.1681268,2256.8,2255.8,0.16297876]
[1770206708507,0.1681268,2256.8,2255.8,0.00458339]
[1770206709504,0.1681268,2256.8,2255.8,0.16297876]
[1770206709706,0.1681268,2257.1,2255.8,0.38494876]
[1770206710005,0.1681268,2257.1,2256.0,0.15839537]
[1770206711105,0.1681268,2257.4,2256.1,0.15839537]
[1770206711305,3.085,2257.6,2256.4,0.15839537]
[1770206711306,3.2531268,2257.6,2256.4,0.15839537]
[1770206713706,0.1681268,2257.5,2256.4,0.15839537]
[1770206714207,0.1681268,2257.3,2256.1,0.15839537]
[1770206717408,0.1681268,2257.3,2256.7,2.60477644]
[1770206717809,0.1681268,2257.3,2256.8,4.21498489]
[1770206718009,0.1681268,2257.3,2256.7,2.60477644]
[1770206718210,0.1681268,2257.3,2256.8,6.82020621]
[1770206718415,0.1681268,2257.5,2257.0,2.60477644]
[1770206719310,0.1681268,2257.5,2257.0,2.32852791]
[1770206719617,0.1681268,2257.5,2256.7,3.90716466]
[1770206719815,0.1681268,2257.5,2256.8,4.21408851]
[1770206720016,0.1681268,2257.5,2256.7,3.90716466]
[1770206720316,0.1681268,2257.5,2256.8,4.21436864]
[1770206720510,0.3899268,2257.5,2256.7,3.90716466]
[1770206720714,0.3899268,2257.5,2256.8,4.20955471]
[1770206721013,0.3899268,2257.5,2256.7,3.90716466]
[1770206721217,0.3899268,2257.5,2256.8,4.20983227]
[1770206721418,0.3899268,2257.5,2256.7,4.07523191]
[1770206721610,0.3899268,2257.5,2256.8,4.26819856]
[1770206721813,0.3899268,2257.5,2256.7,4.07523191]
[1770206722015,0.3899268,2257.5,2256.8,4.26810531]
[1770206722213,0.3899268,2257.5,2256.7,4.07523191]
[1770206722419,0.3899268,2257.5,2256.8,4.26767882]
[1770206722612,0.2218,2257.5,2256.8,0.1679407]
[1770206723724,0.2218,2257.5,2257.0,0.1679407]
[1770206724217,2.217,2257.8,2257.0,0.1679407]
[1770206725014,0.22486576,2257.9,2257.2,3.90716466]
[1770206725218,0.22172,2258.3,2257.4,0.16794192]
[1770206725716,0.22173,2258.2,2257.4,0.16794192]
[1770206726317,0.22571266,2258.2,2257.4,0.17340388]
[1770206727922,0.22571266,2258.2,2257.5,4.24518881]
[1770206728223,0.22963531,2258.2,2257.4,0.17340388]
[1770206728620,0.22177,2257.8,2257.2,2.00552679]
[1770206728924,0.22177,2257.8,2257.0,0.16684543]
[1770206729124,0.22569265,2257.8,2257.1,4.23199795]
[1770206729324,0.22573265,2257.5,2256.7,0.16684543]
[1770206729528,0.22573265,2257.5,2256.8,4.19019796]
[1770206729721,0.22181,2257.5,2256.8,0.00387451]
[1770206729922,0.22181,2257.5,2256.8,0.17124398]
[1770206731323,0.22181,2257.4,2256.8,0.00387451]
[1770206733129,0.2246859,2257.4,2256.8,0.00387451]
[1770206735330,2.217,2257.6,2256.8,0.00145313]
[1770206735531,0.22186,2256.9,2256.4,4.19958318]
[1770206735829,0.22187,2256.8,2256.0,0.16880676]
[1770206736431,0.22187,2256.8,2256.0,0.17196256]
[1770206738925,0.22192,2256.3,2255.6,0.1670296]
[1770206739134,0.22192,2256.3,2255.4,0.1670296]
[1770206740025,0.22575237,2256.3,2255.4,0.17113056]
[1770206740828,0.00383237,2256.3,2255.4,0.17113056]
[1770206742226,0.00129185,2257.1,2255.5,0.222]
[1770206742432,0.22183,2257.2,2255.8,0.16816083]
[1770206742930,0.00129185,2257.4,2255.8,0.16816083]
[1770206743137,0.22179,2257.6,2255.9,0.16816083]
[1770206743430,0.22550363,2257.6,2255.9,0.16816083]
[1770206743636,0.22550363,2257.6,2256.2,0.16816083]
[1770206744428,0.00371363,2257.6,2256.2,0.16816083]
[1770206744633,0.00371363,2257.6,2256.3,0.16791089]
[1770206745025,0.00371363,2257.6,2256.6,0.16791089]
[1770206745527,0.00371363,2257.6,2256.8,0.16791089]
[1770206750639,0.00325226,2257.5,2256.7,0.8861]
[1770206750832,0.22183,2257.3,2256.7,0.8861]
[1770206751036,0.22509635,2257.3,2256.7,0.84544815]
[1770206751439,0.22183,2257.3,2256.7,1.01262889]
[1770206751641,3.855,2257.4,2256.8,0.16718074]
[1770206752739,0.00371363,2257.6,2256.8,0.16718074]
[1770206762757,0.01606933,2259.1,2257.5,0.16080042]
[1770206763054,0.01606933,2259.1,2257.6,0.16080042]
[1770206763055,0.22164,2259.1,2257.6,0.16080042]
[1770206763249,0.01606933,2259.4,2257.8,0.16080042]
[1770206763457,2.217,2259.5,2257.8,0.16080042]
[1770206763654,2.22169678,2259.5,2257.8,0.16530875]
[1770206763851,0.00469678,2259.5,2257.8,0.16530875]
[1770206764451,0.22630678,2259.5,2257.9,0.16300452]
[1770206765051,0.00469678,2259.5,2258.1,0.22173]
[1770206765256,0.00469678,2259.5,2258.2,0.16300452]
[1770206765452,0.00469678,2259.5,2258.1,2.81743478]
[1770206765659,0.00469678,2259.5,2257.8,2.22150833]
[1770206766161,0.22162,2259.4,2257.8,2.22150833]
[1770206766454,0.22165,2259.0,2257.8,2.22150833]
[1770206766761,0.22165,2259.0,2257.8,0.00450833]
[1770206766961,0.2217,2258.5,2257.8,0.00450833]
[1770206768361,0.22173,2258.3,2257.8,0.00450833]
[1770206768961,0.22168,2258.8,2257.8,0.00450833]
[1770206769358,0.22168,2258.7,2257.8,0.00450833]
[1770206769660,0.22172,2258.3,2257.8,8.33e-06]
[1770206770556,0.22167,2258.8,2257.8,8.33e-06]
[1770206770763,4.062,2258.7,2257.8,8.33e-06]
[1770206770960,0.22167,2258.8,2257.8,8.33e-06]
[1770206771262,44.67767,2258.8,2257.8,8.33e-06]
[1770206771467,0.22169,2258.7,2257.8,8.33e-06]
[1770206772864,4.061,2258.8,2257.8,8.33e-06]
[1770206773866,4.061,2258.8,2257.9,0.8857]
[1770206774568,0.2217,2258.5,2257.9,0.8857]
[1770206775968,5.51210457,2258.9,2257.9,0.8857]
[1770206776161,2.06768,2258.8,2257.9,0.8857]
[1770206777271,0.2217,2258.6,2257.9,0.8857]
[1770206777572,0.22173,2258.3,2256.8,0.22186]
[1770206777865,0.22173,2258.3,2256.2,8.68032933]
[1770206777866,0.22178,2257.7,2256.1,9.09206302]
[1770206778067,0.22182,2257.3,2256.0,3.90539061]
[1770206778265,0.22182,2257.3,2255.7,2.59570478]
[1770206778266,0.22183,2257.2,2255.7,3.90539061]
[1770206778470,0.22509933,2257.2,2255.8,4.11345945]
[1770206778768,0.22509933,2257.2,2255.7,0.00358996]
[1770206779173,0.22509933,2257.2,2255.8,0.8454]
[1770206780371,0.22509933,2257.2,2255.8,3.45086162]
[1770206780671,0.22509933,2257.2,2255.8,0.8454]
[1770206780872,0.22509933,2257.2,2255.8,4.95700155]
[1770206781072,0.22509933,2257.2,2255.8,7.56246317]
[1770206781272,0.22509933,2257.2,2255.8,0.8454]
[1770206781971,0.22509933,2257.2,2255.8,4.95718662]
[1770206782670,0.22509933,2257.2,2255.8,0.8454]
[1770206782872,0.22509933,2257.2,2255.8,4.95606789]
[1770206783067,0.22509933,2257.2,2255.8,0.8454]
[1770206785067,0.22185,2257.1,2255.8,0.8454]
[1770206787476,0.22185,2257.0,2255.8,0.8454]
[1770206791079,0.00326933,2257.2,2255.8,0.8454]
[1770206793682,0.00326933,2257.2,2255.8,1.06737]
[1770206794881,0.5,2257.1,2255.8,1.06737]
[1770206795787,0.5,2257.1,2256.1,2.59570478]
[1770206796582,0.5,2257.1,2256.3,0.22192]
[1770206797690,3.855,2257.9,2256.5,0.2219]
[1770206797986,4.07675,2258.0,2256.5,0.2219]
[1770206798787,4.08007619,2258.0,2256.5,0.2219]
[1770206798986,0.00332619,2258.0,2256.7,0.22188]
[1770206799184,0.00332619,2258.0,2256.9,0.22186]
[1770206800490,0.00332619,2258.0,2257.2,0.22182]
[1770206800686,0.00332619,2258.0,2257.3,0.22181]
[1770206800891,0.22168,2258.7,2257.3,0.22596574]
[1770206801791,0.22168,2258.7,2257.3,0.00415574]
[1770206801792,0.22169,2258.6,2257.3,0.00415574]
[1770206804697,0.22171,2258.5,2257.3,0.00415574]
[1770206804997,0.22172,2258.3,2257.3,0.00415574]
[1770206805196,5.29043457,2258.4,2257.3,0.00415574]
[1770206805398,0.22175,2258.1,2256.4,3.69436162]
[1770206805595,0.22175,2258.0,2256.4,1.0889]
[1770206805996,3.855,2258.0,2256.4,1.0889]
[1770206806496,3.855,2258.0,2256.4,1.09463855]
[1770206807491,0.22177,2257.8,2256.4,1.09463855]
[1770206807694,3.855,2258.0,2256.5,0.2219]
[1770206807891,3.855,2258.0,2256.6,2.60546162]
[1770206808096,3.855,2258.0,2256.7,6.70378766]
[1770206808297,3.855,2258.0,2256.7,2.60546162]
[1770206809396,0.22173,2258.3,2256.7,2.60546162]
[1770206809595,0.22173,2258.3,2256.7,2.82733162]
[1770206811800,0.22175,2258.1,2256.7,0.22187]
[1770206812294,0.22175,2258.0,2256.7,0.22187]
[1770206814006,0.22182,2257.4,2256.4,0.00573855]
[1770206816207,2.217,2257.5,2256.4,0.00573855]
[1770206816408,9.54020457,2257.8,2256.4,0.00573855]
[1770206816904,5.29043457,2257.7,2256.4,0.00573855]
[1770206818110,5.51221457,2257.7,2256.4,0.00573855]
[1770206821414,0.22181,2257.4,2256.4,0.00573855]
[1770206823607,0.22181,2257.4,2256.5,0.8452]
[1770206824323,5.29043457,2257.6,2256.5,0.8452]
[1770206824515,9.31543457,2257.7,2256.5,0.8452]
[1770206825519,0.22177,2257.8,2256.5,0.8452]
[1770206825520,9.53620457,2257.8,2256.5,0.8452]
[1770206825713,0.22178,2257.7,2256.5,0.8452]
[1770206828620,5.51222457,2257.6,2256.5,0.8452]
[1770206831420,0.22179,2257.6,2256.5,0.8452]
[1770206831719,0.2218,2257.5,2256.5,0.8452]
[1770206832619,5.29043457,2257.6,2256.5,0.8452]
[1770206833018,5.29043457,2257.5,2256.5,0.8452]
[1770206833619,0.22182,2257.3,2256.5,0.8452]
[1770206838724,5.29043457,2257.8,2256.5,0.8452]
[1770206838925,5.51219457,2257.9,2256.5,0.8452]
[1770206839126,5.51219457,2257.9,2256.5,3.6738531]
[1770206839326,5.51219457,2257.9,2256.5,7.79129977]
[1770206839528,5.51219457,2257.9,2256.5,3.6738531]
[1770206840227,5.51219457,2257.9,2256.5,7.79379165]
[1770206840732,5.51214457,2258.4,2257.0,2.6067531]
[1770206841231,5.29043457,2258.3,2257.1,2.6067531]
[1770206841532,5.51214457,2258.4,2257.0,2.8286031]
[1770206841933,5.51214457,2258.4,2257.1,0.845]
[1770206843229,0.22171,2258.4,2257.1,0.845]
[1770206843735,5.29043457,2258.5,2257.1,0.845]
[1770206843936,0.22175,2258.0,2257.1,0.845]
[1770206846530,0.22176,2257.9,2257.1,0.34256022]
[1770206847237,0.22179,2257.7,2257.1,0.34256022]
[1770206847639,5.51222457,2257.7,2257.1,0.34256022]
[1770206847836,0.22179,2257.7,2257.1,0.34256022]
[1770206848137,5.29043457,2257.8,2257.1,0.34256022]
[1770206848334,5.29043457,2257.9,2257.1,0.34256022]
[1770206850641,5.29043457,2257.8,2257.1,0.34256022]
[1770206851739,5.29043457,2257.5,2256.4,0.00573855]
[1770206851939,4.23978,2257.7,2256.4,0.00573855]
[1770206854043,0.22179,2257.6,2256.4,0.00573855]
[1770206854945,0.2218,2257.5,2256.4,0.00573855]
[1770206855244,0.22184,2257.2,2256.4,0.00573855]
[1770206855542,0.22184,2257.1,2255.7,2.6094489]
[1770206855743,5.3043624,2256.9,2255.4,2.6094489]
[1770206856044,1.02041,2257.3,2255.3,5.04501797]
[1770206856045,6.4123624,2256.8,2255.3,3.74029352]
[1770206856238,6.4123624,2256.8,2255.3,1.13084462]
[1770206856635,6.41807756,2256.8,2255.3,1.13491878]
[1770206856835,1.02066,2256.7,2255.3,0.00407416]
[1770206857037,5.3043624,2256.2,2255.3,0.00407416]
[1770206857244,5.3043624,2256.3,2255.3,0.00407416]
[1770206857941,0.22195,2256.1,2255.3,0.00407416]
[1770206858142,1.801,2256.0,2255.3,0.00407416]
[1770206858337,0.22198,2255.7,2253.9,2.8315989]
[1770206858538,0.222,2255.5,2253.6,2.6094489]
[1770206859246,0.222,2255.5,2253.7,2.60078829]
[1770206859438,0.22203,2255.2,2253.7,0.00476263]
[1770206859643,0.867,2255.1,2253.7,0.00476263]
[1770206859842,0.867,2255.0,2253.7,0.00476263]
[1770206860043,2.82824889,2255.2,2253.7,0.00476263]
[1770206860742,0.22205,2255.0,2253.7,0.00476263]
[1770206861147,3.306,2254.9,2253.7,0.00476263]
[1770206861347,3.33,2254.9,2253.7,0.00476263]
[1770206861547,0.22205,2255.0,2253.7,0.00476263]
[1770206861748,0.0054306,2255.2,2253.7,0.00476263]
[1770206862343,3.0904306,2255.2,2253.7,0.00476263]
[1770206863750,5.69121889,2255.2,2253.7,0.00476263]
[1770206863950,0.22204,2255.1,2253.7,0.00476263]
[1770206865850,5.69121889,2255.2,2253.7,0.00476263]
[1770206866150,2.60078829,2254.8,2253.7,0.00476263]
[1770206866550,0.22208,2254.7,2253.7,0.00476263]
[1770206867247,2.82289829,2254.4,2252.9,0.22225]
[1770206867553,2.60078829,2254.0,2252.5,0.22229]
[1770206867950,2.82293829,2254.0,2252.5,0.22229]
[1770206868153,0.22215,2254.0,2252.5,0.22229]
[1770206868348,1.02185,2254.1,2252.5,0.00544897]
[1770206868550,2.60078829,2253.6,2252.3,0.44398073]
[1770206868750,2.60078829,2253.2,2252.3,0.44398073]
[1770206869052,3.102,2253.1,2251.6,0.22238]
[1770206869444,3.32424,2253.1,2250.9,1.02329]
[1770206869649,3.32883284,2253.1,2251.3,0.22241]
[1770206869845,0.00459284,2253.1,2251.6,0.22238]
[1770206870049,0.00459284,2253.1,2251.8,0.22235]
[1770206870652,0.00459284,2253.1,2252.1,0.22233]
[1770206870852,2.82293829,2254.0,2252.1,0.22233]
[1770206870853,0.867,2253.7,2252.1,0.22233]
[1770206871260,0.22215,2254.0,2252.0,1.02279]
[1770206871456,0.22215,2254.0,2252.4,0.22229]
[1770206871963,0.22785876,2254.0,2252.4,0.22229]
[1770206872760,0.22785876,2254.0,2252.7,0.22227]
[1770206872761,0.00570876,2254.0,2252.7,0.22227]
[1770206873062,0.00570876,2254.0,2252.7,0.22665378]
[1770206873462,0.00570876,2254.0,2252.8,0.22226]
[1770206873956,0.45,2254.4,2253.4,2.82298829]
[1770206874159,0.45,2254.4,2253.6,0.22218]
[1770206874357,1.09001,2255.4,2253.6,0.22218]
[1770206874358,3.33701,2255.4,2253.6,0.22218]
[1770206875062,3.3413144,2255.4,2253.6,0.22218]
[1770206875263,0.0043044,2255.4,2253.8,0.22216]
[1770206876867,0.0043044,2255.4,2253.8,2.60078829]
[1770206877367,0.0043044,2255.4,2254.0,0.22214]
[1770206877863,0.0043044,2255.4,2254.2,0.22212]
[1770206878070,0.0043044,2255.4,2254.5,0.22209]
[1770206878264,0.0043044,2255.4,2254.5,0.22712948]
[1770206878467,0.0043044,2255.4,2254.6,0.887]
[1770206878967,2.22,2255.9,2254.6,0.887]
[1770206879366,2.22,2255.9,2254.7,0.22207]
[1770206879769,2.22,2255.9,2254.6,0.887]
[1770206879970,2.22449304,2255.9,2254.6,0.887]
[1770206880472,2.44645304,2255.9,2254.6,0.887]
[1770206881275,2.60078829,2255.7,2254.6,0.887]
[1770206881573,1.45299,2255.6,2254.6,0.887]
[1770206882173,2.82280829,2255.3,2253.8,0.22216]
[1770206882768,0.22203,2255.2,2253.3,0.22221]
[1770206882972,0.22203,2255.2,2253.5,0.22219]
[1770206883174,0.22203,2255.2,2253.6,2.22328041]
[1770206883371,0.22206,2254.9,2253.6,0.00328041]
[1770206883569,0.22209,2254.6,2253.6,0.00328041]
[1770206883775,2.60078829,2254.5,2252.4,0.22229]
[1770206884073,0.22212,2254.3,2252.4,0.22229]
[1770206884273,2.82284829,2254.9,2252.8,0.22226]
[1770206884471,42.597,2254.8,2253.1,0.22223]
[1770206884671,40.8,2254.8,2252.7,3.62322829]
[1770206884976,2.44196,2255.9,2253.9,2.82293829]
[1770206885476,2.60078829,2255.7,2253.9,0.22215]
[1770206885872,0.22537057,2255.7,2254.0,0.22214]
[1770206886180,4.02037057,2255.7,2254.0,0.22214]
[1770206886678,0.222,2255.5,2253.5,4.80150721]
[1770206886979,0.222,2255.5,2253.5,2.44219]
[1770206887381,0.222,2255.5,2253.5,5.02369721]
[1770206888480,2.60078829,2255.3,2253.5,2.44219]
[1770206888778,0.222,2255.5,2253.6,0.22218]
[1770206889179,0.22204,2255.1,2253.5,2.22]
[1770206889477,3.62210829,2255.3,2253.5,2.22]
[1770206889681,0.22208,2254.7,2252.8,2.80376721]
[1770206889979,2.22,2254.6,2252.8,2.80376721]
[1770206890279,2.22,2254.6,2252.8,0.22226]
[1770206890280,2.44209,2254.6,2252.8,0.22226]
[1770206890779,0.22209,2254.6,2252.9,2.60078829]
[1770206891177,5.5264024,2255.1,2253.4,0.2222]
[1770206891372,2.22,2255.0,2253.4,0.2222]
[1770206891973,0.22204,2255.1,2253.6,0.22218]
[1770206893779,1.02148,2254.9,2253.3,2.58150721]
[1770206893981,3.31007,2254.8,2253.1,0.22223]
[1770206894484,44.11007,2254.8,2253.1,0.22223]
[1770206894678,0.22207,2254.8,2253.3,0.2222]
[1770206895177,0.22207,2254.8,2253.1,5.1822955]
[1770206895178,40.8,2255.0,2253.4,0.2222]
[1770206895381,41.02205,2255.0,2253.4,0.2222]
[1770206895782,0.22205,2255.0,2253.4,0.2222]
[1770206897589,0.22206,2254.9,2253.4,0.2222]
[1770206900787,46.1043624,2255.2,2253.3,2.58150721]
[1770206900994,0.22202,2255.3,2253.7,0.22217]
[1770206901295,0.22202,2255.3,2253.7,2.80367721]
[1770206903092,0.22207,2254.8,2253.4,2.58150721]
[1770206903292,0.22207,2254.8,2253.5,2.58150721]
[1770206903594,5.5263924,2255.2,2253.5,2.58150721]
[1770206903894,0.22203,2255.2,2253.8,0.22216]
[1770206904097,0.22537057,2255.7,2254.1,2.58150721]
[1770206904296,0.22537057,2255.7,2254.2,2.58150721]
[1770206905294,0.22537057,2255.7,2254.3,0.22211]
[1770206905494,0.22537057,2255.7,2254.3,0.22615303]
[1770206905895,0.22537057,2255.7,2254.3,2.80766024]
[1770206906294,0.22537057,2255.7,2254.3,0.22615303]
[1770206907496,0.22537057,2255.7,2254.3,0.00404303]
[1770206907497,0.00339057,2255.7,2254.3,0.00404303]
[1770206907794,0.00339057,2255.7,2254.6,0.22208]
[1770206909694,0.00339057,2255.7,2254.5,7.54847081]
[1770206909894,0.00339057,2255.7,2254.5,3.44950721]
[1770206910589,0.00339057,2255.7,2254.5,0.868]
[1770206910798,0.00339057,2255.7,2254.4,2.80360721]
[1770206910799,0.00339057,2255.7,2254.4,0.2221]
[1770206912396,0.00339057,2255.7,2254.3,0.00404303]
[1770206912397,9.1593624,2255.6,2254.3,0.00404303]
[1770206912702,0.22204,2255.1,2254.3,0.00404303]
[1770206914001,5.3043624,2255.3,2254.3,0.00404303]
[1770206914197,2.219,2255.3,2254.3,0.00404303]
[1770206915003,5.3043624,2255.4,2254.3,0.00404303]
[1770206915203,7.7453624,2255.5,2254.3,0.00404303]
[1770206915601,5.3043624,2255.4,2254.3,0.00404303]
[1770206916499,0.222,2255.5,2254.3,0.00404303]
[1770206916804,5.3043624,2255.6,2254.3,0.00404303]
[1770206917004,5.30775297,2255.7,2254.3,0.00404303]
[1770206917603,0.00339057,2255.7,2254.3,0.00404303]
[1770206918204,0.00339057,2255.7,2254.4,0.8871]
[1770206918904,5.52973297,2255.7,2254.4,0.8871]
[1770206920804,0.22537057,2255.7,2254.4,0.8871]
[1770206921306,0.00339057,2255.7,2254.4,0.8871]
[1770206921504,0.00339057,2255.7,2254.5,0.22209]
[1770206922903,0.00339057,2255.7,2254.4,0.8871]
[1770206923808,0.22199,2255.6,2254.4,0.8871]
[1770206926201,5.30775297,2255.7,2254.4,0.8871]
[1770206926403,0.00339057,2255.7,2254.4,0.8871]
[1770206926602,5.30775297,2255.7,2254.4,0.8871]
[1770206927107,0.00339057,2255.7,2254.4,0.8871]
[1770206928308,5.30775297,2255.7,2254.4,0.8871]
[1770206928508,0.00339057,2255.7,2254.4,0.8871]
[1770206929208,5.30775297,2255.7,2254.4,0.8871]
[1770206931815,5.3043624,2255.6,2254.4,0.8871]
[1770206932112,5.5263624,2255.5,2254.4,0.8871]
[1770206933811,5.3043624,2255.4,2254.4,0.8871]
[1770206935209,5.3043624,2255.5,2254.4,1.1092]
[1770206936008,5.3043624,2255.5,2254.4,0.2221]
[1770206937412,5.3043624,2255.5,2254.5,0.8871]
[1770206939418,5.30775297,2255.7,2254.5,3.71922449]
[1770206940111,5.30775297,2255.7,2254.5,7.8050001]
[1770206940314,0.00339057,2255.7,2254.6,2.83211449]
[1770206941518,0.00339057,2255.7,2254.6,6.9178901]
[1770206941711,0.00339057,2255.7,2254.6,2.83211449]
[1770206942118,0.00339057,2255.7,2254.6,6.91958623]
[1770206944422,0.00339057,2255.7,2254.7,2.61003449]
[1770206945325,0.22537057,2255.7,2254.6,2.61003449]
[1770206945622,5.52973297,2255.7,2254.5,3.49713449]
[1770206946121,5.3043624,2255.5,2254.5,0.8871]
[1770206947620,5.30775297,2255.7,2254.5,3.71922449]
[1770206947822,5.30775297,2255.7,2254.6,0.22208]
[1770206948124,5.30775297,2255.7,2254.7,0.22207]
[1770206948325,5.30775297,2255.7,2254.7,2.61003449]
[1770206948326,0.00339057,2255.7,2254.7,2.61003449]
[1770206948522,0.00339057,2255.7,2254.8,0.22206]
[1770206955727,0.00339057,2255.7,2254.9,0.8869]
[1770206956829,5.3043624,2256.2,2255.0,0.22204]
[1770206957529,5.3043624,2256.5,2255.2,0.22202]
[1770206957727,5.3043624,2256.5,2255.2,2.83205449]
[1770206958029,5.3079817,2256.5,2255.2,0.22202]
[1770206960931,5.3079817,2256.5,2255.1,0.867]
[1770206961230,5.3079817,2256.5,2254.9,0.8869]
[1770206961231,5.3043624,2256.2,2254.9,0.8869]
[1770206961431,5.3043624,2256.1,2254.9,0.8869]
[1770206961928,5.3043624,2256.2,2254.9,0.8869]
[1770206962231,5.3043624,2256.2,2254.9,1.10896]
[1770206962930,0.22192,2256.3,2254.9,3.71899449]
[1770206962931,5.5262824,2256.3,2254.9,3.71899449]
[1770206964233,0.22193,2256.2,2254.9,3.71899449]
[1770206964734,0.22193,2256.2,2254.9,7.77326335]
[1770206964940,0.22193,2256.2,2254.9,3.71899449]
[1770206965837,0.22193,2256.2,2254.9,7.77446964]
[1770206966133,0.22193,2256.2,2254.9,3.71899449]
[1770206966929,0.22193,2256.2,2254.9,2.83209449]
[1770206968233,0.22193,2256.2,2255.0,0.8869]
[1770206969436,5.5262924,2256.2,2255.0,0.8869]
[1770206969636,5.3043624,2256.1,2255.0,0.8869]
[1770206970231,5.5263124,2256.0,2255.0,0.8869]